Cogmind - Beta 14 @@@ ROGUE MODE // 2024.10.02 @ 01:14:21 Player: polar Result: Destroyed by S-27 Virus with Autogun Performance ------------- Evolutions (3) 1500 Regions Visited (9) 1800 Robots Destroyed (131) 655 Value Destroyed (5214) 5214 Prototype IDs (5) 100 Alien Tech Used (0) 0 Bonus (1988) 1988 TOTAL SCORE: 11257 Bonus ------- High Alert Combat Kills 507 Follower Combat Kills 1224 Entered Garrisons 600 Used RIF Installer 1000 Friendly Fire -1343 Cogmind --------- Core Integrity 0/700 Matter 229/300 Energy 130/160 System Corruption 16% Temperature Cool (0) Movement Treading (232) Ox1 Location -7/Garrison Parts ------- > --- POWER (1) -------- Light Nuclear Core > --- PROPULSION (4) --- Light Treads Light Treads Advanced Treads Advanced Treads > --- UTILITY (6) ------ Improved Cooling System Huge Storage Unit Advanced Visual Processing Unit Improved Light Armor Plating Hacking Suite Relay Coupler [Grunt] (29) > --- WEAPON (2) ------- Quantum Rifle Heavy Machine Gun > --- INVENTORY (25) --- Enhanced Nuclear Core Medium Treads Wheel Advanced Heat Sink Active Sensor Spoofer Authchip [R/Combat] Authchip [R/Combat] Authchip [R/Combat] Authchip [R/Combat] Relay Coupler [NC] (37) Relay Coupler [NC] (31) Relay Coupler [NC] (34) Relay Coupler [Brawler] (27) Relay Coupler [Duelist] (39) Relay Coupler [Sentry] (29) Relay Coupler [Sentry] (26) Relay Coupler [Hunter] (21) Improved Trap Extractor (3/6 Blade) Improved Trap Extractor (6/6 Armageddon) Heavy Mass Driver Improved Datajack Improved Plasma Cutter Multitool Makeshift Hammer Peak State ------------ > --- POWER ------------ Enhanced Nuclear Core > --- PROPULSION ------- Medium Treads Medium Treads Medium Treads Compact Wheel > --- UTILITY ---------- Huge Storage Unit Improved Transmission Jammer Hacking Suite System Shield Relay Coupler [NC] Relay Coupler [Swarmer] > --- WEAPON ----------- Wave Gun Heavy Phase Cannon > --- INVENTORY -------- Enhanced Nuclear Core Enhanced Nuclear Core Authchip [R/Combat] Authchip [R/Combat] Authchip [R/Combat] Authchip [R/Combat] Relay Coupler [NC] Relay Coupler [NC] Relay Coupler [NC] Relay Coupler [NC] Relay Coupler [Grunt] Relay Coupler [Brawler] Relay Coupler [Sentry] Relay Coupler [Specialist] Improved Trap Extractor Improved Trap Extractor Wave Gun Rocket Launcher Improved Datajack Remote Datajack Remote Datajack Improved Plasma Cutter Multitool Makeshift Hammer [Rating: 55] Favorites ----------- Power Nuclear Core Engine Light Ion Engine Power Core Nuclear Core Propulsion Wheel Treads Light Treads Wheel Wheel Utility Huge Storage Unit Device Improved Transmission Jammer Storage Huge Storage Unit Processor Improved Targeting Computer Hackware System Shield Protection Improved Light Armor Plating Weapon Autogun Energy Gun Wave Gun Energy Cannon Subdweller Beam Cannon Ballistic Gun Autogun Launcher Rocket Launcher Special Weapon Remote Datajack Impact Weapon Makeshift Hammer Special Melee Weapon Improved Datajack Build | -11 -10 -10 -10 -8 -8 -8 -8 -7 -7 ------- Run | Yrd Mat Min Sub Mat Gar Mat Gar Fac Gar Slots Evolved 6 | . . . . 4 . . . 2 . Power . | . . . . . . . . . . Propulsion 2 | . . . . 1 . . . 1 . Utility 4 | . . . . 3 . . . 1 . Weapon . | . . . . . . . . . . Parts Attached 195 | 7 14 3 33 14 18 27 13 54 12 Power 14 | 1 3 . 2 2 . 1 . 4 1 Engine 7 | 1 3 . 2 . . 1 . . . Core 7 | . . . . 2 . . . 4 1 Reactor . | . . . . . . . . . . Propulsion 44 | 2 3 1 5 4 . 9 . 18 2 Treads 23 | 1 2 1 3 1 . 3 . 10 2 Leg . | . . . . . . . . . . Wheel 21 | 1 1 . 2 3 . 6 . 8 . Hover . | . . . . . . . . . . Flight . | . . . . . . . . . . Utility 44 | 2 2 . 5 5 2 7 6 10 5 Device 24 | 1 . . 4 2 2 5 4 3 3 Storage 3 | 1 1 . 1 . . . . . . Processor 4 | . 1 . . 2 . . . 1 . Hackware 11 | . . . . 1 . 2 2 5 1 Protection 2 | . . . . . . . . 1 1 Artifact . | . . . . . . . . . . Weapon 93 | 2 6 2 21 3 16 10 7 22 4 Energy Gun 12 | 1 1 . . . 1 4 . 4 1 Energy Cannon 8 | . . . 2 2 . 1 . 3 . Ballistic Gun 18 | 1 3 1 10 . 1 . . 1 1 Ballistic Cannon . | . . . . . . . . . . Launcher 16 | . 2 1 3 1 1 2 2 4 . Special Weapon 17 | . . . 1 . 4 2 5 5 . Impact Weapon 17 | . . . 5 . 6 . . 5 1 Slashing Weapon . | . . . . . . . . . . Piercing Weapon . | . . . . . . . . . . Special Melee Weapon 5 | . . . . . 3 1 . . 1 Unidentified Prototypes 3 | . . . 1 . . . . 1 1 Corrupted Parts 1 | . . . . . . . . 1 . System Corruption 8 | . . . . . . . . 8 . Parts Lost 38 | . 1 . 5 . . 2 1 28 1 Power 5 | . . . 1 . . . . 4 . Propulsion 19 | . . . 2 . . 2 . 14 1 Utility 6 | . 1 . . . . . 1 4 . Weapon 8 | . . . 2 . . . . 6 . Highest Loss Streak 10 | . 1 . 3 . . 1 1 10 1 To Critical Strikes . | . . . . . . . . . . Average Slot Usage (%) 93 | . 94 100 94 94 100 97 98 83 91 Engine 4 | . 13 14 8 . . 1 9 . . Core 4 | . . . . 8 9 7 . 4 5 Treads 16 | . 14 28 26 3 . 6 27 18 28 Wheel 9 | . 14 . 1 19 27 19 . 4 . Device 9 | . 3 . 10 14 11 14 12 5 7 Storage 10 | . 14 14 14 9 9 9 9 7 7 Processor 8 | . 5 14 3 17 15 9 . 4 7 Hackware 8 | . . . . 3 9 12 21 21 9 Energy Gun 2 | . 11 . . . 1 7 . 1 . Energy Cannon 4 | . . . 6 8 6 4 9 4 . Ballistic Gun 8 | . 14 27 19 9 . . . 1 6 Special Weapon 1 | . . . . . . 2 7 3 . Impact Weapon 2 | . . . 1 . 7 2 . 1 4 Peak Build Rating 55 | 7 11 12 31 44 42 49 53 55 51 Average Rating 30 | 5 9 11 13 36 35 43 49 42 42 On Entrance 25 | . 7 11 12 31 32 40 46 47 33 Naked Turns . | . . . . . . . . . . Heaviest Build 112 | 15 32 30 98 106 106 111 112 104 98 Greatest Support 112 | 20 20 40 40 30 30 84 84 112 84 Greatest Overweight (x) 28 | . 3 . 4 5 3 6 1 28 1 Average Overweight (x) 1 | . . . . 4 3 2 1 2 1 Largest Inventory Capacity 25 | 8 15 15 25 25 25 25 25 25 25 Average Capacity 21 | 7 11 15 15 25 25 25 25 25 25 Most Carried 25 | 6 15 15 25 25 25 25 25 25 25 Average Carried 20 | 3 10 14 15 23 24 24 24 21 23 Final Capacity 25 | 8 15 15 25 25 25 25 25 25 25 Final Carried 25 | 6 15 15 25 25 25 25 25 16 25 Class Distribution -------------------- 51% | Bothacker-Mutant 39% | Mutant 8% | Scavenger-Mutant Dominant Class ---------------- Mutant | -10/Materials Mutant | -10/Mines Mutant | -10/Subcaves Scavenger-Mutant | -8/Materials Bothacker-Mutant | -8/Garrison Bothacker-Mutant | -8/Materials Bothacker-Mutant | -8/Garrison Bothacker-Mutant | -7/Factory Bothacker-Mutant | -7/Garrison Resources | -11 -10 -10 -10 -8 -8 -8 -8 -7 -7 ----------- Run | Yrd Mat Min Sub Mat Gar Mat Gar Fac Gar Matter Collected 3610 | 268 419 152 593 199 264 286 236 793 400 Remotely . | . . . . . . . . . . Salvage Created 4314 | 30 543 149 457 347 342 766 332 1234 114 Parts 265 | 4 51 15 29 21 19 41 21 57 7 Haulers Intercepted 2 | . 2 . . . . . . . . Recyclers Shooed 5 | . . . . . . 2 . 3 . Parts Field Recycled . | . . . . . . . . . . Retrieved Matter . | . . . . . . . . . . Parts Self-Destructed 6 | . . . 6 . . . . . . Prevented . | . . . . . . . . . . Kills | -11 -10 -10 -10 -8 -8 -8 -8 -7 -7 ------- Run | Yrd Mat Min Sub Mat Gar Mat Gar Fac Gar Combat Hostiles Destroyed 90 | . 14 5 12 6 6 10 9 23 5 Melee 4 | . . . . . 1 . . 3 . Guns 36 | . 11 5 5 1 . 4 . 5 5 Cannons 21 | . . . 5 2 1 2 4 7 . AOE 27 | . 3 . 2 3 3 4 5 7 . Classes Destroyed 18 | 1 5 . 2 3 2 2 . 3 . Worker 6 | . . . . 1 . 1 . 4 . Builder 2 | . . . . . . . . 2 . Tunneler 7 | 1 2 3 . . . 1 . . . Hauler 2 | . 2 . . . . . . . . Recycler 8 | . . . . . . 4 . 4 . Mechanic 1 | . . . . . . . . 1 . Operator 2 | . 1 . . . . 1 . . . Watcher 8 | . 2 . . 2 1 3 . . . Swarmer 36 | . 9 5 . 3 4 . 4 6 5 Grunt 22 | . 5 . . 1 . 6 5 5 . Brawler 2 | . . . . . 1 . . 1 . Duelist 4 | . . . . 1 2 1 . . . Sentry 9 | . . . . 2 2 2 . 3 . Specialist 2 | . . . . . . . . 2 . Hunter 2 | . . . . . . 1 . 1 . Programmer 6 | . . . . . 1 . . 5 . Artisan 1 | . . . 1 . . . . . . Subdweller 12 | . . . 12 . . . . . . Best Kill Streak 9 | 1 5 3 2 3 3 5 4 9 4 Combat Bots Only 6 | . 3 3 2 3 3 5 4 6 4 Max Kills in Single Turn 4 | 1 1 1 1 3 2 2 4 3 2 Gunslinging 1 | . . . . . . . . . 1 Exploded 4 | . 1 . 1 3 2 2 4 2 . Melee 1 | . . . . . 1 . . 1 . Uniques/NPCs Destroyed . | . . . . . . . . . . Combat | -11 -10 -10 -10 -8 -8 -8 -8 -7 -7 -------- Run | Yrd Mat Min Sub Mat Gar Mat Gar Fac Gar Hostile Shots Fired 710 | . 53 21 57 16 43 49 44 349 78 Missed 196 | . 16 5 11 7 14 16 12 96 19 Damage Taken 6979 | . 397 125 1074 112 295 486 562 3146 782 Core 1143 | . 78 18 152 15 46 71 62 555 146 Absorbed by Shields 53 | . . . . . 49 4 . . . Regen/Repaired (Parts) 233 | . . . . 24 . 77 . 132 . Core Remaining (%) 54 | 100 . . . . . . 64 . . Volleys Fired 467 | 1 54 12 62 29 17 68 46 167 11 Largest 2 | 2 2 2 2 2 2 2 2 2 2 Hottest 171 | 60 73 46 160 103 103 171 123 171 124 Shots Fired 647 | 2 105 24 111 30 18 106 51 180 20 Gun 327 | 2 95 24 71 2 2 72 . 39 20 Cannon 221 | . . . 35 27 9 21 37 92 . Launcher 47 | . 10 . 5 1 3 6 6 16 . Special 52 | . . . . . 4 7 8 33 . Kinetic 185 | 1 52 24 71 2 2 . . 21 12 Thermal 325 | . . . 35 27 10 93 42 110 8 Explosive 47 | . 10 . 5 1 3 6 6 16 . Electromagnetic 44 | 1 43 . . . . . . . . Robot Hit Streak 17 | 1 10 6 16 7 2 16 17 8 3 Robot Miss Streak 5 | . 5 3 2 1 2 3 1 5 4 Penetration Max . | . . . . . . . . . . Secondary Targets 3 | . . 2 . . . . . . 1 Max Gunslinging Chain 1 | . . 1 . . . . . . 1 Shots Hit Robots 394 | 1 53 15 65 14 32 69 34 94 17 Core Hits 168 | 1 25 8 20 9 7 30 15 48 5 Critical Kills 6 | . . . 2 1 2 . . 1 . Critical Parts Destroyed 1 | . . . . . 1 . . . . Critical Strikes 9 | . . . 2 1 3 1 . 2 . Burn 2 | . . . . . . 1 . 1 . Meltdown 2 | . . . . 1 1 . . . . Destroy 2 | . . . 2 . . . . . . Smash 3 | . . . . . 2 . . 1 . Melee Attacks 162 | . . . 43 . 73 4 . 17 25 Impact 140 | . . . 43 . 58 4 . 17 18 Slashing . | . . . . . . . . . . Piercing . | . . . . . . . . . . Sneak Attacks 30 | . . . . . 23 . . . 7 Combat Hostiles 1 | . . . . . 1 . . . . Follow-up Attacks . | . . . . . . . . . . Damage Inflicted 11435 | 13 1073 235 1180 492 1151 2186 1325 3476 304 Guns 3412 | 13 733 235 570 34 15 1008 . 500 304 Cannons 3802 | . . . 337 333 134 450 867 1681 . Explosions 3115 | . 340 . 273 125 199 628 432 1118 . Melee 1080 | . . . . . 803 100 . 177 . Ramming . | . . . . . . . . . . Kinetic 1548 | 13 346 235 570 34 15 . . 174 161 Thermal 5497 | . 47 . 337 333 134 1458 893 2152 143 Explosive 2901 | . 293 . 273 125 199 628 432 951 . Electromagnetic 409 | . 387 . . . . . . 22 . Impact 1080 | . . . . . 803 100 . 177 . Slashing . | . . . . . . . . . . Piercing . | . . . . . . . . . . Highest Corruption 16 | . . . . . . . . 16 16 Average Corruption 10 | . . . . . . . . 7 16 Corruption Purged 1 | . . . . . . . . 1 . Corruption Blocked . | . . . . . . . . . . Effects 90 | . . . . . . . . 51 39 Message Errors 24 | . . . . . . . . 12 12 Matter Fused 16 | . . . . . . . . 11 5 Heat Flow Errors 13 | . . . . . . . . 7 6 Energy Discharges 15 | . . . . . . . . 8 7 Parts Rejected 2 | . . . . . . . . 1 1 Parts Fused 1 | . . . . . . . . 1 . Data Loss (minor) 7 | . . . . . . . . 3 4 Data Loss (major) 5 | . . . . . . . . 2 3 Misfires 4 | . . . . . . . . 3 1 Alerts 1 | . . . . . . . . 1 . Misdirections 2 | . . . . . . . . 2 . Overload Shots . | . . . . . . . . . . Overflow Damage 527 | . 4 . . 1 275 31 54 162 . Projectiles 73 | . . . . . 5 . 13 55 . Explosions 165 | . 4 . . 1 . 31 41 88 . Melee 289 | . . . . . 270 . . 19 . Knockbacks 4 | . . . . . 3 . . 1 . Impact 4 | . . . . . 3 . . 1 . Kinetic . | . . . . . . . . . . Secondary . | . . . . . . . . . . Self-Inflicted Damage 365 | . 48 . . . 18 . 113 186 . Shots 9 | . 1 . . . 1 . 3 4 . Rammed . | . . . . . . . . . . Targets Rammed . | . . . . . . . . . . Kicked . | . . . . . . . . . . Crushed . | . . . . . . . . . . Highest Temperature 384 | . 122 12 90 161 192 384 312 297 204 Average Temperature 83 | . 27 5 28 46 72 115 86 97 61 Received Heat Transfer 1170 | . 81 . 159 18 45 180 162 489 36 Effects 3 | . . . . . . . . 3 . Energy Bleed 1 | . . . . . . . . 1 . Interference 2 | . . . . . . . . 2 . Siege Activations . | . . . . . . . . . . Robots Corrupted 3 | . . . . . 3 . . . . Combat Hostiles 1 | . . . . . 1 . . . . Parts Fried 6 | . 1 . . . 5 . . . . Impact Corruptions 8 | . . . . . 7 . . 1 . Robots Melted 3 | . . . . 1 1 . . 1 . Combat Hostiles 1 | . . . . . . . . 1 . Parts Melted 13 | . . . 1 2 1 4 . 5 . Heat Transferred 6575 | . . . 444 444 185 2109 986 2222 185 Parts Sabotaged . | . . . . . . . . . . Parts Stolen . | . . . . . . . . . . Parts Stripped . | . . . . . . . . . . Power Chain Reactions 1 | . 1 . . . . . . . . Alert | -11 -10 -10 -10 -8 -8 -8 -8 -7 -7 ------- Run | Yrd Mat Min Sub Mat Gar Mat Gar Fac Gar Peak Influence 983 | 5 444 292 . 170 983 821 797 609 883 Initial 479 | . 3 141 . . 92 479 440 417 403 Average 393 | 2 259 124 . 54 467 730 624 356 567 Maximum Alert Level 3 | . 2 1 . . 3 3 3 2 3 Low Security (%) 28 | 100 25 61 . 100 30 . . 11 . Level 1 23 | . 67 38 . . 16 . . 49 . Level 2 31 | . 7 . . . 24 34 64 39 91 Level 3 16 | . . . . . 28 65 35 . 8 Level 4 . | . . . . . . . . . . Level 5 . | . . . . . . . . . . High Security . | . . . . . . . . . . Max Security . | . . . . . . . . . . Squads Dispatched 14 | . 2 . . . . 5 . 7 . Investigation 2 | . 1 . . . . . . 1 . Extermination 3 | . . . . . . . . 3 . Reinforcement 7 | . 1 . . . . 3 . 3 . Assault 2 | . . . . . . 2 . . . Garrison . | . . . . . . . . . . Intercept . | . . . . . . . . . . Searches Triggered . | . . . . . . . . . . Construction Impeded 3 | . . . . . . 1 . 2 . Haulers Reinforced . | . . . . . . . . . . Active Scanning Responses . | . . . . . . . . . . Cargo Convoy Interrupts 1 | . . . . . . . . 1 . Stealth | -11 -10 -10 -10 -8 -8 -8 -8 -7 -7 --------- Run | Yrd Mat Min Sub Mat Gar Mat Gar Fac Gar Distress Signals 6 | . 1 . . 3 . 1 . 1 . Communications Jammed 111 | . . . . . 30 16 . 65 . Distress Signals 109 | . . . . . 30 14 . 65 . Times Spotted 222 | . 26 6 14 29 26 40 14 54 13 Peak Tracking Total 13 | . 6 3 2 6 4 6 4 13 6 Tactical Retreats 7 | . 2 . . . . 1 . 3 1 Traps | -11 -10 -10 -10 -8 -8 -8 -8 -7 -7 ------- Run | Yrd Mat Min Sub Mat Gar Mat Gar Fac Gar Traps Triggered 14 | . 1 . . . 5 2 1 1 4 Indirectly . | . . . . . . . . . . Trap Hack Attempts 23 | . . . . . . 23 . . . Triggered . | . . . . . . . . . . Disarmed . | . . . . . . . . . . Reprogrammed 3 | . . . . . . 3 . . . Reused . | . . . . . . . . . . Traps Extracted 3 | . . . . . . 3 . . . Installed . | . . . . . . . . . . Triggered . | . . . . . . . . . . Most Traps Carried 9 | . . . . . . 3 9 9 9 Machines | -11 -10 -10 -10 -8 -8 -8 -8 -7 -7 ---------- Run | Yrd Mat Min Sub Mat Gar Mat Gar Fac Gar Machines Disabled 26 | . 3 . . 1 7 2 4 6 3 Max in Single Turn 2 | . 1 . . 1 1 1 1 2 1 Garrison Access 1 | . . . . . . . . 1 . Garrison Relay 8 | . . . . . 5 . 1 . 2 Machines Repaired . | . . . . . . . . . . Machines Dismantled 1 | . . . . . 1 . . . . Machines Sabotaged . | . . . . . . . . . . Overloaded Fab Kills . | . . . . . . . . . . Hacking | -11 -10 -10 -10 -8 -8 -8 -8 -7 -7 --------- Run | Yrd Mat Min Sub Mat Gar Mat Gar Fac Gar Machines Accessed 42 | . 8 1 3 5 2 5 2 16 . Terminals 25 | . 6 . . 2 2 3 2 10 . Fabricators 3 | . . . . . . . . 3 . Repair Stations 5 | . 1 . . 2 . 1 . 1 . Recycling Units 1 | . 1 . . . . . . . . Scanalyzers . | . . . . . . . . . . Garrison Access 4 | . . . . 1 . 1 . 2 . Total Hacks 96 | . 23 1 6 15 2 10 3 36 . Successful 48 | . 10 1 6 7 1 5 2 16 . Failed 47 | . 12 . . 8 1 5 1 20 . Catastrophic 9 | . 2 . . 1 1 . . 5 . Database Lockouts 1 | . 1 . . . . . . . . Manual 35 | . 8 . . 5 3 4 . 15 . Terminals 62 | . 18 . . 9 2 7 3 23 . Fabricators 8 | . . . . . . . . 8 . Repair Stations 13 | . 3 . . 5 . 2 . 3 . Recycling Units 2 | . 2 . . . . . . . . Scanalyzers . | . . . . . . . . . . Garrison Access 4 | . . . . 1 . 1 . 2 . Terminal Hacks 22 | . 5 1 6 2 1 1 2 4 . Record 4 | . . . 4 . . . . . . Robot Schematic 2 | . . . . . . . . 2 . Robot Analysis 2 | . 2 . . . . . . . . Prototype ID Bank 1 | . 1 . . . . . . . . Open Door 2 | . . 1 1 . . . . . . Branch Access Points 1 | . . . . 1 . . . . . Emergency Access Points 1 | . . . . . . . 1 . . Terminal Index 1 | . 1 . . . . . . . . Locate Traps 4 | . . . . 1 . 1 . 2 . Registered Prototypes 1 | . 1 . . . . . . . . Garrison Registry 2 | . . . . . 1 . 1 . . Release Object 1 | . . . 1 . . . . . . Fabricator Hacks 3 | . . . . . . . . 3 . Load Schematic 2 | . . . . . . . . 2 . Build 1 | . . . . . . . . 1 . Repair Station Hacks 7 | . 1 . . 2 . 2 . 2 . Scan Component 4 | . 1 . . 1 . 1 . 1 . Repair 3 | . . . . 1 . 1 . 1 . Recycling Unit Hacks 1 | . 1 . . . . . . . . Report Inventory 1 | . 1 . . . . . . . . Scanalyzer . | . . . . . . . . . . Garrison Access Hacks 4 | . . . . 1 . 1 . 2 . Unlock Access 3 | . . . . 1 . 1 . 1 . Seal Access 1 | . . . . . . . . 1 . Unauthorized Hacks 11 | . 3 . . 2 . 1 . 5 . Terminals 10 | . 2 . . 2 . 1 . 5 . Track 1 | . . . . . . . . 1 . Botnet 6 | . 1 . . 1 . 1 . 3 . Operators 3 | . 1 . . 1 . . . 1 . Fabricators . | . . . . . . . . . . Repair Stations . | . . . . . . . . . . Recycling Units 1 | . 1 . . . . . . . . Tunnel 1 | . 1 . . . . . . . . Scanalyzers . | . . . . . . . . . . Garrison Access . | . . . . . . . . . . Data Cores Recovered 1 | . . . . . . 1 . . . Used . | . . . . . . . . . . Hacking Detections 29 | . 6 . . 3 . 4 1 15 . Full Trace Events 2 | . 1 . . . . . . 1 . Feedback Events . | . . . . . . . . . . Feedback Blocked . | . . . . . . . . . . Robot Schematics Acquired 2 | . . . . . . . . 2 . Robots Built 1 | . . . . . . . . 1 . Authchips . | . . . . . . . . . . Time 58 | . . . . . . . . 58 . Total Robot Build Rating 3 | . . . . . . . . 3 . Part Schematics Acquired . | . . . . . . . . . . Parts Built . | . . . . . . . . . . Authchips . | . . . . . . . . . . Time . | . . . . . . . . . . Total Part Build Rating . | . . . . . . . . . . Parts Repaired 3 | . . . . 1 . 1 . 1 . Time 128 | . . . . 44 . 56 . 28 . Parts Recycled . | . . . . . . . . . . Recycled Matter . | . . . . . . . . . . Retrieved Matter . | . . . . . . . . . . Retrieved Components . | . . . . . . . . . . Parts Scanalyzed . | . . . . . . . . . . Part Schematics Acquired . | . . . . . . . . . . Parts Damaged . | . . . . . . . . . . Bothacking | -11 -10 -10 -10 -8 -8 -8 -8 -7 -7 ------------ Run | Yrd Mat Min Sub Mat Gar Mat Gar Fac Gar Used RIF Installer 2 | . . . . . 1 . 1 . . Coupler Efficiency 1 | . . . . . . . 1 . . Robots Hacked 20 | . . . . . . 5 3 12 . Non-combat 3 | . . . . . . . . 3 . Combat 17 | . . . . . . 5 3 9 . Robot Hacks Applied 24 | . . . . . . 6 3 15 . map_route 1 | . . . . . . . . 1 . find_garrison 1 | . . . . . . 1 . . . scatter_targeting 1 | . . . . . . . 1 . . spike_heat 1 | . . . . . . . . 1 . amplify_resonance 1 | . . . . . . 1 . . . wipe_record 1 | . . . . . . 1 . . . reboot_system 2 | . . . . . . . 1 1 . overwrite_iff 9 | . . . . . . 1 1 7 . formatsys_low 2 | . . . . . . . . 2 . formatsys_high 5 | . . . . . . 2 . 3 . Relay Couplers Released 31 | . . . . . 20 . 5 . 6 Machine Destruction 28 | . . . . . 17 . 5 . 6 Programmers 3 | . . . . . 3 . . . . Attached 8 | . . . . . . 2 1 4 1 Fabnet Peak Effective % . | . . . . . . . . . . Robots Rewired 10 | . . . . . 6 . . . 4 Allies Hacked . | . . . . . . . . . . Hacks Repelled . | . . . . . . . . . . Allies | -11 -10 -10 -10 -8 -8 -8 -8 -7 -7 -------- Run | Yrd Mat Min Sub Mat Gar Mat Gar Fac Gar Total Allies 49 | . . 4 . 5 15 6 3 10 6 Largest Group 5 | . . 4 3 1 5 4 1 2 5 Highest-Rated Group 253 | . . 71 39 21 81 95 29 83 253 Highest-Rated Ally 62 | . . 31 16 21 39 39 29 43 62 Total Orders 26 | . . . 1 17 7 1 . . . FOLLOW 2 | . . . . 2 . . . . . RETURN 24 | . . . 1 15 7 1 . . . Ally Attacks 289 | . . 1 11 46 61 86 18 26 40 Total Damage 4552 | . . 13 145 312 845 1100 211 534 1392 Kills 47 | . . 1 1 4 9 12 1 4 15 Allies Corrupted 2 | . . . . . 2 . . . . Allies Melted 1 | . . . . . 1 . . . . Intel | -11 -10 -10 -10 -8 -8 -8 -8 -7 -7 ------- Run | Yrd Mat Min Sub Mat Gar Mat Gar Fac Gar Robot Analysis Total 2 | . 2 . . . . . . . . Derelict Logs Recovered 4 | . . 1 3 . . . . . . Drone Launches 111 | . . . 1 51 36 13 10 . . Drone Recoveries 107 | . . . 1 50 35 11 10 . . Exploration | -11 -10 -10 -10 -8 -8 -8 -8 -7 -7 ------------- Run | Yrd Mat Min Sub Mat Gar Mat Gar Fac Gar Turns Passed 13161 | 70 914 1010 2542 1189 1967 1234 871 2472 892 Spaces Moved 6684 | 52 652 595 1312 629 1310 606 299 905 324 Core 14 | 4 . . . . . . . 10 . Treads 3002 | 1 2 595 1228 . . 88 299 465 324 Legs . | . . . . . . . . . . Wheels 3668 | 47 650 . 84 629 1310 518 . 430 . Hover . | . . . . . . . . . . Flight . | . . . . . . . . . . Fastest Speed 50 | 50 95 160 140 125 125 116 240 115 225 Average Speed 159 | 97 106 160 165 149 125 142 240 208 231 Slowest Speed 1450 | 160 240 160 240 155 125 240 240 1450 232 Overloaded Moves . | . . . . . . . . . . Propulsion Burnouts . | . . . . . . . . . . Robots Hopped . | . . . . . . . . . . Cave-ins Triggered . | . . . . . . . . . . Exploration Rate (%) 54 | 4 90 101 61 46 81 60 40 25 34 Regions Visited 9 Branch Regions 2 Pre-discovered Areas 2 | . 1 . 1 . . . . . . Known Exits Taken 3 | . . . . 1 . 1 . 1 . Unknown Exits Taken 4 | 1 1 1 1 . . . . . . Scrap Searched 9 | . . 1 8 . . . . . . Spaces Dug 150 | . 23 . 23 23 24 7 1 35 14 Terrain Destroyed 471 | . 89 . 82 25 46 59 46 110 14 Melee 71 | . . . 23 . 24 . . 10 14 Projectile 86 | . . . 3 14 . 24 2 43 . AOE 314 | . 89 . 56 11 22 35 44 57 . Terrain Rammed . | . . . . . . . . . . Walls Destroyed . | . . . . . . . . . . Machines Disabled . | . . . . . . . . . . Actions | -11 -10 -10 -10 -8 -8 -8 -8 -7 -7 --------- Run | Yrd Mat Min Sub Mat Gar Mat Gar Fac Gar Total 8408 | 65 785 633 1502 847 1559 877 400 1306 434 Wait 646 | . 34 22 33 150 69 139 37 144 18 Move 6677 | 51 651 594 1311 629 1309 606 298 904 324 Hop . | . . . . . . . . . . Pick Up 106 | 6 17 1 9 18 19 3 3 10 20 Fast Attach 47 | 7 4 . 1 3 1 7 1 15 8 Attach 31 | . 1 . 6 1 . 1 1 21 . Detach 9 | . 1 . 1 . . 1 . 5 1 Swap 118 | . 9 3 26 10 17 19 11 19 4 Drop 79 | . 14 1 10 7 20 6 2 4 15 Fire 467 | 1 54 12 62 29 17 68 46 167 11 Melee 162 | . . . 43 . 73 4 . 17 25 Ram . | . . . . . . . . . . Kick . | . . . . . . . . . . Crush . | . . . . . . . . . . Escape Stasis 32 | . . . . . 24 . . . 8 Rewire 1 | . . . . . . . 1 . . Trap 23 | . . . . . . 23 . . . Miscellaneous 10 | . . . . . 10 . . . . Route ------- -11/Scrapyard -10/Materials (discovered 4 exits: [*Mat x3] / *Min) -10/Mines (discovered 3 exits: [*Mat x2] / *Sub) -10/Subcaves (discovered 2 exits: *Mat x2) -8/Materials (discovered 3 exits: *Fac x2 / Gar) -8/Garrison (discovered 3 exits: *Mat x3) -8/Materials (discovered 3 exits: *Fac x2 / Gar) -8/Garrison (discovered 3 exits: *Fac x3) -7/Factory (discovered 6 exits: *Fac x4 / Low / Gar) -7/Garrison History --------- Turn | Location | Event 15 | -11/Scrapyard | Discovered new exit (range 15) 71 | -11/Scrapyard | Entered Materials 99 | -10/Materials | Central database locked down 192 | -10/Materials | Discovered new exit (range 7) 309 | -10/Materials | Build established: Mutant 455 | -10/Materials | Discovered new exit (range 12) 588 | -10/Materials | Discovered new exit (range 3) 873 | -10/Materials | Discovered new exit (range 12) 985 | -10/Materials | Entered Mines 1105 | -10/Mines | Learned 2 Materials zone layouts 1125 | -10/Mines | Assisted by bots powering up and referring to "LRC-V3" 1267 | -10/Mines | Discovered new exit (range 12) 1285 | -10/Mines | Discovered new exit (range 7) 1576 | -10/Mines | Received a Mining Laser from a helpful Derelict 1856 | -10/Mines | Found the Drone Emporium 1867 | -10/Mines | Found Prototype Device 1956 | -10/Mines | Excavation squad dispatched 1956 | -10/Mines | A large section of the Mines collapsed 1984 | -10/Mines | Discovered new exit (range 6) 1995 | -10/Mines | Entered Subcaves 1995 | -10/Subcaves | Accompanied by 3 allies 2003 | -10/Subcaves | Learned Materials stockpile data 2143 | -10/Subcaves | Ambushed by angry Subdweller bent on revenge 2278 | -10/Subcaves | A swath of the cavern ceiling suddenly collapsed 2344 | -10/Subcaves | Visited Clippyterm 2349 | -10/Subcaves | Learned Factory fabricator intel 2349 | -10/Subcaves | Learned 40 Factory zone layouts 2846 | -10/Subcaves | Ambushed by Subdweller buried in earth 2849 | -10/Subcaves | Core integrity fell below 50% 3390 | -10/Subcaves | Discovered new exit (range 7) 3428 | -10/Subcaves | Learned 8 Materials zone layouts 3429 | -10/Subcaves | Discovered new exit (range 10) 3518 | -10/Subcaves | Lost 3 parts (1n2w) 3583 | -10/Subcaves | A swath of the cavern ceiling suddenly collapsed 3597 | -10/Subcaves | Ambushed by Subdwellers from Twisted Machinery 3792 | -10/Subcaves | Core integrity fell below 20% 4179 | -10/Subcaves | Identified Splice Drone Bay 4419 | -10/Subcaves | Found SUBCON Basin 4537 | -10/Subcaves | Entered Materials 4537 | -8/Materials | Evolved 4 slots: Propulsion x1, Utility x3 4538 | -8/Materials | Identified exit to Factory 4698 | -8/Materials | Build established: Scavenger-Mutant 4735 | -8/Materials | Repaired Broken Sub. Optics 5276 | -8/Materials | Discovered exit to Factory (range 16) 5726 | -8/Materials | Identified exit to Garrison 5726 | -8/Materials | Entered Garrison 5865 | -8/Garrison | Installed Relay Interface Framework 5869 | -8/Garrison | Build established: Mutant 5904 | -8/Garrison | Triggered checkpoint 6019 | -8/Garrison | Garrison Relay disabled 6252 | -8/Garrison | Triggered checkpoint 6316 | -8/Garrison | Triggered checkpoint 6350 | -8/Garrison | Garrison Relay disabled 6400 | -8/Garrison | Triggered checkpoint 6557 | -8/Garrison | Discovered new exit (range 10) 6566 | -8/Garrison | Triggered checkpoint 6602 | -8/Garrison | Triggered checkpoint 6651 | -8/Garrison | Garrison Relay disabled 6675 | -8/Garrison | Build established: Bothacker-Mutant 6858 | -8/Garrison | Triggered checkpoint 6885 | -8/Garrison | Discovered new exit (range 64) 6885 | -8/Garrison | Discovered new exit (range 23) 6885 | -8/Garrison | Discovered new exit (range 45) 6904 | -8/Garrison | Garrison Relay disabled 6960 | -8/Garrison | Triggered checkpoint 7015 | -8/Garrison | Lost 6 allies 7071 | -8/Garrison | Garrison Relay disabled 7624 | -8/Garrison | Rescued a captive Derelict 7632 | -8/Garrison | Rescued a captive Derelict 7693 | -8/Garrison | Entered Materials 7693 | -8/Materials | Accompanied by 2 allies 7821 | -8/Materials | Discovered exit to Factory (range 16) 8093 | -8/Materials | First assault squad dispatched 8754 | -8/Materials | Repaired Wave Gun 8767 | -8/Materials | Discovered exit to Factory (range 5) 8927 | -8/Materials | Identified exit to Garrison 8927 | -8/Materials | Entered Garrison 8960 | -8/Garrison | Discovered exit to Factory (range 70) 8960 | -8/Garrison | Discovered exit to Factory (range 74) 8960 | -8/Garrison | Discovered exit to Factory (range 78) 9023 | -8/Garrison | Expanded RIF knowledge: Coupler Efficiency 9145 | -8/Garrison | Triggered checkpoint 9613 | -8/Garrison | Triggered checkpoint 9694 | -8/Garrison | Garrison Relay disabled 9798 | -8/Garrison | Entered Factory 9798 | -7/Factory | Evolved 2 slots: Propulsion x1, Utility x1 9799 | -7/Factory | Identified exit to Factory 9799 | -7/Factory | Identified exit to Lower Caves 9800 | -7/Factory | Loaded intel: 6 fabricator locations 10073 | -7/Factory | Repaired Hvy. Phase Cannon 10860 | -7/Factory | Discovered exit to Factory (range 9) 11130 | -7/Factory | Cargo convoy interrupted 11177 | -7/Factory | P-60 Hacker assimilated allied X-67 Chaingunner 11206 | -7/Factory | Lost 3 allies 11213 | -7/Factory | Lost 3 parts (3n) 11403 | -7/Factory | System corruption reached 10% 11476 | -7/Factory | Core integrity fell below 50% 11503 | -7/Factory | Lost 10 parts (1p4n2u3w) 11896 | -7/Factory | Fabricated M-28 Smith? 11992 | -7/Factory | Lost 5 parts (1p3n1w) 12261 | -7/Factory | Identified exit to Garrison 12270 | -7/Factory | Entered Garrison 12306 | -7/Garrison | Triggered checkpoint 12370 | -7/Garrison | Triggered checkpoint 12376 | -7/Garrison | Core integrity fell below 20% 12484 | -7/Garrison | Garrison Relay disabled 12528 | -7/Garrison | Found embedded Infiltrators 12802 | -7/Garrison | Triggered checkpoint 12859 | -7/Garrison | Garrison Relay disabled 13058 | -7/Garrison | Triggered checkpoint 13078 | -7/Garrison | Triggered checkpoint 13134 | -7/Garrison | Lost 3 allies 13162 | -7/Garrison | Destroyed by S-27 Virus with Autogun Last Messages --------------- 13118_ Dropped Flexi-carbon Leg. 13120_ Acquired Imp. Light Armor Plating. 13122_ System corrupted: Energy discharge (-54). 13125_ Dropped Adv. Heat Sink. 13128_ Acquired Imp. Cooling System. 13134_ Dropped Hvy. Mass Driver. 13137_ RN=K6UJ4%RLIOSXOBC22OY%:QTOOFE2#A 13137_ Acquired Hvy. Mass Driver. 13138_ Acquired 1 matter. 13140_ S-27 Virus destroyed. 13140_ Chaingunner 4b destroyed. 13148_ S-27 Virus destroyed. 13150_ Destroyed Lgt. Nuclear Core. 13153_ S-27 Virus destroyed. 13153_ Switching to secondary target: S-27 Virus. 13153_ S-27 Virus destroyed. 13156_ I8A#W|XR5A IZSPJX7H>I=T%EEMI YR<8:RS/ 13156_ Destroyed VTOL Module. 13162_ S-27 Virus destroyed. Map ----- +----------------------------------------------------+ | ?????????????????????????????????????????????????? | | ?????????????????????????????????????????????????? | | ?????????????????????????????????????????????????? | | ?????????????????????????????????????????????????? | | ?????????????????????????????????????????????????? | | ?????????????????????????????????????????????????? | | ?????????????????????????????????????????????????? | | ?????????????????????????????????????????????????? | | ?????????????????????????????????????????????????? | | ?????????????????????????????????????????????????? | | ?????????????????????????????????????????????????? | | ????????????#####""??######??????????????????????? | | ????????????? ?? ??????????????????????? | | ?????????? ??? ?? ??????????????????????? | | ?????????? ??? ?? ??????????????????????? | | ???????????# ???# ?# #??????????????????????? | | ???????????# ?## ## ##?????????????????????? | | ???????????" ? ^ ?????????????????????? | | ???????????" ^ [% ?????????????????????? | | ????????????? ? ^* ! ??????????????????????? | | ??????????????? ^ ?? ^%[=!??????????????????????? | | ????????????????# ??#%=!#??????###?????????????? | | ???????????#% %## ##=%[########"############### | | ??????????##=%[ [%=!*% %=[!! " | | ?????? =s%%%* !%=!=]!%!%! # | | ???????????# [ % %! @######## #########"##"# | | ???????????## ## %! ######??????# #???????###### | | ????????????????# =??????????????# #????????????? | | ????????????????#????????????????# #????????????? | | ?????????????????????????????????# #????????????? | | ?????????????????????????????????# #????????????? | | ?????????????????????????????????# ##???????????? | | ????????????????????????????????## "#???????????? | | ????????????????????????????????#" ##???????????? | | ????????????????????????????????## #????????????? | | ?????????????????????????????????# #????????????? | | ?????????????????????????????????# #????????????? | | ?????????????????????????????????# #????????????? | | ?????????????????????????????????# #????????????? | | ?????????????????????????????????# #????????????? | | ?????????????????????????????????# #????????###?? | | ????????????????????????????###### #???????##"##? | | ???????????????????????###??# #" #???????# #? | | ?????????????????????###"#### #= ######### ## | | ?????????????????????#" [ !! | | ?????????????????????## != [ | | ??????????????????????# #####" =#="##########"### | | ????????????????????### #???########????????###?? | | ????????????????????#"# #???????????????????????? | | ????????????????????#" #???????????????????????? | +----------------------------------------------------+ Best States ------------- Heat Dissipation 61 Energy Generation 17 Energy Capacity 300 Matter Stores 300 Matter Capacity 300 Sight Range 21 Terrain Scan Density 10 Jamming Range 14 Armor Coverage 150 Evasion (%) 41 Targeting Accuracy 12 Recoil Reduction 4 Offensive Hacking 10 Defensive Hacking 10 Relay Coupler Types 3 Relay Coupler Value 82 Authchip Count 4 Trap Extractor Capacity 6 Item Schematics ----------------- None Robot Schematics ------------------ M-28 Smith | -7/Factory | Hacked L-41 Fighter | -7/Factory | Hacked Fabricated ------------ M-28 Smith | x1 | -7/Factory Alien Tech Used ----------------- None Achievements -------------- None Challenges ------------ None Game ------ Seed CommSpliceTearclaws Manual? 0 Play Time 02:29:17 Cumulative 352.8 hours Start 2024.10.01 @ 22:44:33 End 2024.10.02 @ 01:14:21 Sessions 1 Manual Loads 0 Difficulty Rogue Special Mode None Game No. 117 Rogue 115 Adventurer 0 Explorer 2 Win Type - Total 8 Types 6/0/1/1/0/0/0/0/0 Lore% 68 Gallery% 81 Achievement% 74 Wizard Run 0 Options --------- Layout 2 ASCII 0 Keyboard 1 Movement Numpad Keybinds 0 Fullscreen 1 Font 24/Smallcaps Map View 50x44 Zoom Use 0% Tactical HUD 1 Map Filters NONE Filters NONE Steam 0 RUN: 4bf2d70a-5c47-420c-a33f-eb3c36acd138